fUST/lending_fUST_20241214
["ID","MTS","AMOUNT","RATE_DAILY","PERIOD"]
[345243419,1734113433802,-597.70575236,0.00027397,7]
[345243421,1734113433814,-500.0,0.00027397,7]
[345243423,1734113433826,-500.0,0.00027397,7]
[345243425,1734113433836,-500.0,0.00027397,7]
[345243427,1734113433846,-152.428091,0.00027397,7]
[345243429,1734113433856,-500.0,0.00027397,7]
[345243431,1734113433867,-500.0,0.00027397,7]
[345243433,1734113433877,-500.0,0.00027397,7]
[345243435,1734113433887,-500.0,0.00027397,7]
[345243437,1734113433898,-500.0,0.00027397,7]
[345243439,1734113433909,-500.0,0.00027397,7]
[345243441,1734113433919,-500.0,0.00027397,7]
[345243444,1734113433929,-524.17040311,0.00027397,7]
[345243446,1734113433939,-500.0,0.00027397,7]
[345243448,1734113433948,-631.07585838,0.00027397,7]
[345243450,1734113433958,-500.0,0.00027397,7]
[345243452,1734113433967,-500.0,0.00027397,7]
[345243454,1734113433977,-547.24,0.00027397,7]
[345243455,1734113433989,-500.0,0.00027397,7]
[345243458,1734113433999,-500.0,0.00027397,7]
[345243460,1734113434009,-500.0,0.00027397,7]
[345243461,1734113434019,-500.0,0.00027397,7]
[345243463,1734113434029,-500.0,0.00027397,7]
[345243465,1734113434038,-500.0,0.00027397,7]
[345243467,1734113434048,-500.0,0.00027397,7]
[345243482,1734113434173,-500.0,0.00027397,7]
[345243484,1734113434183,-500.0,0.00027397,7]
[345243486,1734113434193,-500.0,0.00027397,7]
[345243488,1734113434202,-500.0,0.00027397,7]
[345243490,1734113434212,-599.4,0.00027397,7]
[345243492,1734113434222,-500.0,0.00027397,7]
[345243494,1734113434232,-640.98,0.00027397,7]
[345243496,1734113434242,-500.0,0.00027397,7]
[345243498,1734113434251,-500.0,0.00027397,7]
[345243500,1734113434261,-610.91,0.00027397,7]
[345243502,1734113434271,-500.0,0.00027397,7]
[345243504,1734113434281,-500.0,0.00027397,7]
[345243506,1734113434291,-500.0,0.00027397,7]
[345243508,1734113434300,-500.0,0.00027397,7]
[345243510,1734113434310,-500.0,0.00027397,7]
[345243512,1734113434319,-500.0,0.00027397,7]
[345243514,1734113434329,-500.0,0.00027397,7]
[345243516,1734113434338,-500.0,0.00027397,7]
[345243518,1734113434347,-500.0,0.00027397,7]
[345243520,1734113434357,-500.0,0.00027397,7]
[345243522,1734113434366,-500.0,0.00027397,7]
[345243524,1734113434376,-500.0,0.00027397,7]
[345243526,1734113434385,-500.0,0.00027397,7]
[345243528,1734113434394,-500.0,0.00027397,7]
[345243530,1734113434404,-500.0,0.00027397,7]
[345243532,1734113434413,-558.38143651,0.00027397,7]
[345243534,1734113434424,-500.0,0.00027397,7]
[345243536,1734113434433,-500.0,0.00027397,7]
[345243539,1734113434442,-500.0,0.00027397,7]
[345243541,1734113434452,-500.0,0.00027397,7]
[345243543,1734113434461,-500.0,0.00027397,7]
[345243545,1734113434479,-553.27,0.00027397,7]
[345243547,1734113434488,-620.5,0.00027397,7]
[345243549,1734113434498,-500.0,0.00027397,7]
[345243551,1734113434507,-500.0,0.00027397,7]
[345243553,1734113434517,-500.0,0.00027397,7]
[345243555,1734113434526,-500.0,0.00027397,7]
[345243557,1734113434535,-500.0,0.00027397,7]
[345243559,1734113434544,-500.0,0.00027397,7]
[345243561,1734113434554,-500.0,0.00027397,7]
[345243563,1734113434563,-500.0,0.00027397,7]
[345243565,1734113434572,-500.0,0.00027397,7]
[345243567,1734113434582,-151.0,0.00027397,7]
[345243569,1734113434591,-151.0,0.00027397,7]
[345243571,1734113434600,-151.0,0.00027397,7]
[345243573,1734113434609,-151.0,0.00027397,7]
[345243575,1734113434618,-268.613182,0.00027397,7]
[345243577,1734113434627,-500.0,0.00027397,7]
[345243579,1734113434637,-500.0,0.00027397,7]
[345243581,1734113434646,-500.0,0.00027397,7]
[345243583,1734113434655,-500.0,0.00027397,7]
[345243585,1734113434664,-500.0,0.00027397,7]
[345243587,1734113434674,-500.0,0.00027397,7]
[345243589,1734113434683,-500.0,0.00027397,7]
[345243591,1734113434692,-500.0,0.00027397,7]
[345243593,1734113434701,-500.0,0.00027397,7]
[345243595,1734113434711,-500.0,0.00027397,7]
[345243597,1734113434721,-500.0,0.00027397,7]
[345243599,1734113434731,-500.0,0.00027397,7]
[345243601,1734113434740,-500.0,0.00027397,7]
[345243603,1734113434749,-500.0,0.00027397,7]
[345243605,1734113434759,-500.0,0.00027397,7]
[345243607,1734113434768,-500.0,0.00027397,7]
[345243609,1734113434777,-500.0,0.00027397,7]
[345243611,1734113434786,-500.0,0.00027397,7]
[345243613,1734113434795,-500.0,0.00027397,7]
[345243615,1734113434805,-500.0,0.00027397,7]
[345243617,1734113434815,-500.0,0.00027397,7]
[345243619,1734113434826,-500.0,0.00027397,7]
[345243621,1734113434835,-500.0,0.00027397,7]
[345243623,1734113434844,-500.0,0.00027397,7]
[345243625,1734113434854,-500.0,0.00027397,7]
[345243627,1734113434864,-512.37465986,0.00027397,7]
[345243629,1734113434874,-520.84608062,0.00027397,7]
[345243631,1734113434883,-500.0,0.00027397,7]
[345243633,1734113434893,-379.41457761,0.00027397,7]
[345243635,1734113434903,-500.0,0.00027397,7]
[345243637,1734113434912,-562.73,0.00027397,7]
[345243639,1734113434921,-500.0,0.00027397,7]
[345243641,1734113434931,-500.0,0.00027397,7]
[345243643,1734113434940,-500.0,0.00027397,7]
[345243645,1734113434949,-500.0,0.00027397,7]
[345243647,1734113434958,-500.0,0.00027397,7]
[345243649,1734113434968,-500.0,0.00027397,7]
[345243651,1734113434978,-585.3,0.00027397,7]
[345243653,1734113434987,-500.0,0.00027397,7]
[345243655,1734113434996,-500.0,0.00027397,7]
[345243657,1734113435006,-500.0,0.00027397,7]
[345243659,1734113435015,-500.0,0.00027397,7]
[345243661,1734113435024,-500.0,0.00027397,7]
[345243663,1734113435033,-500.0,0.00027397,7]
[345243665,1734113435043,-500.0,0.00027397,7]
[345243667,1734113435052,-500.0,0.00027397,7]
[345243669,1734113435062,-500.0,0.00027397,7]
[345243671,1734113435071,-500.0,0.00027397,7]
[345243673,1734113435081,-644.9725057,0.00027397,7]
[345243675,1734113435090,-500.0,0.00027397,7]
[345243677,1734113435099,-500.0,0.00027397,7]
[345243679,1734113435108,-500.0,0.00027397,7]
[345243681,1734113435117,-500.0,0.00027397,7]
[345243683,1734113435127,-500.0,0.00027397,7]
[345243685,1734113435136,-500.0,0.00027397,7]
[345243687,1734113435145,-394.11166424,0.00027397,7]
[345243689,1734113435154,-500.0,0.00027397,7]
[345243691,1734113435164,-500.0,0.00027397,7]
[345243693,1734113435173,-500.0,0.00027397,7]
[345243695,1734113435182,-500.0,0.00027397,7]
[345243697,1734113435191,-500.0,0.00027397,7]
[345243699,1734113435200,-387.96904027,0.00027397,7]
[345243701,1734113435209,-500.0,0.00027397,7]
[345243703,1734113435220,-500.0,0.00027397,7]
[345243705,1734113435229,-500.0,0.00027397,7]
[345243707,1734113435238,-500.0,0.00027397,7]
[345243709,1734113435248,-500.0,0.00027397,7]
[345243711,1734113435257,-500.0,0.00027397,7]
[345243713,1734113435267,-415.35074106,0.00027397,2]
[345243715,1734113435276,-500.0,0.00027397,7]
[345243717,1734113435285,-348.01451009,0.00027397,7]
[345243719,1734113435294,-500.0,0.00027397,7]
[345243721,1734113435303,-200.0,0.00027397,7]
[345243723,1734113435313,-500.0,0.00027397,7]
[345243725,1734113435322,-500.0,0.00027397,7]
[345243727,1734113435331,-233.69508315,0.00027397,7]
[345243729,1734113435340,-500.0,0.00027397,7]
[345243731,1734113435349,-500.0,0.00027397,7]
[345243733,1734113435359,-550.25,0.00027397,7]
[345243735,1734113435368,-500.0,0.00027397,7]
[345243737,1734113435378,-500.0,0.00027397,7]
[345243739,1734113435387,-500.0,0.00027397,7]
[345243741,1734113435396,-500.0,0.00027397,7]
[345243743,1734113435405,-500.0,0.00027397,7]
[345243745,1734113435415,-500.0,0.00027397,7]
[345243747,1734113435424,-500.0,0.00027397,7]
[345243749,1734113435434,-617.2,0.00027397,7]
[345243751,1734113435443,-151.0,0.00027397,7]
[345243753,1734113435452,-151.0,0.00027397,7]
[345243755,1734113435462,-151.0,0.00027397,7]
[345243757,1734113435472,-151.0,0.00027397,7]
[345243759,1734113435481,-151.0,0.00027397,7]
[345243761,1734113435490,-504.92947223,0.00027397,7]
[345243763,1734113435500,-151.0,0.00027397,7]
[345243765,1734113435510,-151.0,0.00027397,7]
[345243767,1734113435519,-151.0,0.00027397,7]
[345243769,1734113435529,-500.0,0.00027397,7]
[345243771,1734113435538,-151.0,0.00027397,7]
[345243773,1734113435548,-171.843043,0.00027397,7]
[345243775,1734113435557,-500.0,0.00027397,7]
[345243776,1734113435567,-500.0,0.00027397,7]
[345243778,1734113435576,-500.0,0.00027397,7]
[345243780,1734113435586,-500.0,0.00027397,7]
[345243782,1734113435595,-500.0,0.00027397,7]
[345243784,1734113435605,-500.0,0.00027397,7]
[345243786,1734113435615,-500.0,0.00027397,7]
[345243788,1734113435624,-500.0,0.00027397,7]
[345243790,1734113435634,-500.0,0.00027397,7]
[345243792,1734113435644,-510.59471099,0.00027397,7]
[345243793,1734113435653,-500.0,0.00027397,7]
[345243794,1734113435663,-509.21215078,0.00027397,7]
[345243795,1734113435674,-151.0,0.00027397,7]
[345243796,1734113435683,-500.0,0.00027397,7]
[345243797,1734113435693,-151.0,0.00027397,7]
[345243798,1734113435703,-151.0,0.00027397,7]
[345243799,1734113435712,-151.0,0.00027397,7]
[345243800,1734113435723,-151.0,0.00027397,7]
[345243801,1734113435732,-500.0,0.00027397,7]
[345243802,1734113435743,-151.0,0.00027397,7]
[345243803,1734113435752,-500.0,0.00027397,7]
[345243804,1734113435763,-500.0,0.00027397,7]
[345243805,1734113435773,-500.0,0.00027397,7]
[345243806,1734113435783,-151.0,0.00027397,7]
[345243807,1734113435792,-500.0,0.00027397,7]
[345243808,1734113435801,-151.0,0.00027397,7]
[345243809,1734113435811,-151.0,0.00027397,7]
[345243810,1734113435824,-151.0,0.00027397,7]
[345243811,1734113435833,-219.763148,0.00027397,7]
[345243813,1734113435843,-504.11564766,0.00027397,7]
[345243815,1734113435852,-500.0,0.00027397,7]
[345243817,1734113435863,-313.40499394,0.00027397,7]
[345243819,1734113435872,-500.0,0.00027397,7]
[345243821,1734113435881,-555.48,0.00027397,7]
[345243823,1734113435892,-508.22942457,0.00027397,7]
[345243825,1734113435901,-610.62812336,0.00027397,7]
[345243827,1734113435911,-500.0,0.00027397,7]
[345243828,1734113435920,-500.0,0.00027397,7]
[345243830,1734113435930,-500.0,0.00027397,7]
[345243832,1734113435939,-500.0,0.00027397,7]
[345243834,1734113435948,-500.0,0.00027397,7]
[345243836,1734113435958,-500.0,0.00027397,7]
[345243838,1734113435968,-1507.09,0.00027397,5]
[345243840,1734113435978,-499.12475,0.00027397,7]
[345243842,1734113435987,-500.0,0.00027397,7]
[345243844,1734113435996,-500.0,0.00027397,7]
[345243846,1734113436006,-500.0,0.00027397,7]
[345243848,1734113436016,-500.0,0.00027397,7]
[345243850,1734113436025,-500.0,0.00027397,7]
[345243852,1734113436035,-561.11,0.00027397,7]
[345243854,1734113436044,-500.0,0.00027397,7]
[345243856,1734113436055,-500.0,0.00027397,7]
[345243858,1734113436064,-500.0,0.00027397,7]
[345243860,1734113436074,-500.0,0.00027397,7]
[345243862,1734113436084,-1000.0,0.00027397,7]
[345243864,1734113436094,-500.0,0.00027397,7]
[345243866,1734113436103,-500.0,0.00027397,7]
[345243868,1734113436112,-500.0,0.00027397,7]
[345243870,1734113436122,-500.0,0.00027397,7]
[345243872,1734113436132,-500.0,0.00027397,7]
[345243874,1734113436141,-500.0,0.00027397,7]
[345243876,1734113436151,-500.0,0.00027397,7]
[345243878,1734113436160,-500.0,0.00027397,7]
[345243880,1734113436169,-1000.0,0.00027397,7]
[345243882,1734113436179,-151.0,0.00027397,7]
[345243884,1734113436188,-151.0,0.00027397,7]
[345243886,1734113436198,-151.0,0.00027397,7]
[345243888,1734113436207,-500.0,0.00027397,7]
[345243890,1734113436216,-151.0,0.00027397,7]
[345243892,1734113436227,-500.0,0.00027397,7]
[345243894,1734113436236,-206.901679,0.00027397,7]
[345243896,1734113436245,-500.0,0.00027397,7]
[345243898,1734113436254,-579.19936873,0.00027397,7]
[345243900,1734113436263,-500.0,0.00027397,7]
[345243902,1734113436272,-500.0,0.00027397,7]
[345243904,1734113436281,-500.0,0.00027397,7]
[345243906,1734113436291,-500.0,0.00027397,7]
[345243908,1734113436300,-500.0,0.00027397,7]
[345243910,1734113436309,-500.0,0.00027397,7]
[345243912,1734113436318,-500.0,0.00027397,7]
[345243913,1734113436327,-500.0,0.00027397,7]
[345243915,1734113436336,-504.52274084,0.00027397,7]
[345243917,1734113436345,-500.0,0.00027397,7]
[345243919,1734113436355,-500.0,0.00027397,7]
[345243921,1734113436364,-500.0,0.00027397,7]
[345243923,1734113436373,-292.49186953,0.00027397,7]
[345243925,1734113436383,-500.0,0.00027397,7]
[345243927,1734113436392,-500.0,0.00027397,7]
[345243929,1734113436403,-500.0,0.00027397,7]
[345243931,1734113436412,-500.0,0.00027397,7]
[345243934,1734113436422,-500.0,0.00027397,7]
[345243936,1734113436431,-248.36041722,0.00027397,7]
[345243937,1734113436441,-500.0,0.00027397,2]
[345243939,1734113436450,-500.0,0.00027397,7]
[345243940,1734113436459,-507.40693395,0.00027397,7]
[345243941,1734113436470,-555.12951062,0.00027397,7]
[345243942,1734113436479,-500.0,0.00027397,7]
[345243944,1734113436488,-500.0,0.00027397,7]
[345243945,1734113436498,-500.0,0.00027397,7]
[345243946,1734113436507,-500.0,0.00027397,7]
[345243947,1734113436517,-507.39521476,0.00027397,7]
[345243948,1734113436526,-500.0,0.00027397,7]
[345243949,1734113436535,-500.0,0.00027397,7]
[345243950,1734113436545,-590.3,0.00027397,7]
[345243951,1734113436554,-500.0,0.00027397,7]
[345243952,1734113436564,-500.0,0.00027397,7]
[345243953,1734113436573,-500.0,0.00027397,7]
[345243954,1734113436582,-500.0,0.00027397,7]
[345243955,1734113436592,-500.0,0.00027397,7]
[345243956,1734113436601,-163.14728502,0.00027397,2]
[345243957,1734113436611,-184.96,0.000274,2]
[345243958,1734113436620,-417.544,0.0002755,2]
[345243959,1734113436630,-352.0,0.000276,13]
[345243960,1734113436639,-253.0,0.00027616,2]
[345243961,1734113436649,-579.63880349,0.00027619,2]
[345243962,1734113436658,-152.8,0.00027648,3]
[345243963,1734113436667,-492.03,0.00027671,7]
[345243964,1734113436676,-500.0,0.00027671,7]
[345243965,1734113436686,-500.0,0.00027671,7]
[345243966,1734113436695,-500.0,0.00027671,7]
[345243967,1734113436705,-500.0,0.00027671,7]
[345243968,1734113436714,-500.0,0.00027671,7]
[345243969,1734113436725,-326.29,0.00027671,7]
[345243970,1734113436735,-500.0,0.00027671,7]
[345243971,1734113436744,-500.0,0.00027671,7]
[345243972,1734113436754,-500.0,0.00027671,7]
[345243973,1734113436763,-281.29,0.00027671,7]
[345243974,1734113436772,-500.0,0.00027671,7]
[345243975,1734113436782,-622.55985318,0.00027671,7]
[345243976,1734113436791,-500.0,0.00027671,7]
[345243977,1734113436801,-620.33,0.00027671,7]
[345243978,1734113436812,-500.0,0.00027671,7]
[345243979,1734113436824,-500.0,0.00027671,7]
[345243980,1734113436834,-252.15551681,0.00027671,7]
[345243981,1734113436843,-282.03,0.00027671,7]
[345243982,1734113436853,-500.0,0.00027671,7]
[345243983,1734113436863,-500.0,0.00027671,7]
[345243984,1734113436874,-500.0,0.00027671,7]
[345243985,1734113436883,-620.5,0.00027671,7]
[345243986,1734113436895,-489.91,0.00027671,7]
[345243987,1734113436904,-322.15,0.00027671,7]
[345243988,1734113436914,-399.0,0.00027671,7]
[345243989,1734113436923,-500.0,0.00027671,7]
[345243990,1734113436932,-500.0,0.00027671,7]
[345243991,1734113436942,-314.69,0.00027671,7]
[345243992,1734113436951,-170.18,0.00027671,7]
[345243993,1734113436960,-168.14,0.00027671,7]
[345243994,1734113436970,-175.68,0.00027671,7]
[345243995,1734113437072,-202.92167443,0.00027671,7]
[345243996,1734113437082,-275.6,0.00027671,7]
[345243997,1734113437091,-630.45,0.00027671,7]
[345243998,1734113437100,-359.89,0.00027671,7]
[345243999,1734113437110,-420.07,0.00027671,7]
[345244000,1734113437119,-194.86,0.00027671,7]
[345244001,1734113437128,-500.0,0.00027671,7]
[345244002,1734113437137,-1507.09,0.00027671,5]
[345244003,1734113437147,-540.74,0.00027671,7]
[345244004,1734113437156,-500.0,0.00027671,7]
[345244005,1734113437166,-385.0,0.00027671,7]
[345244006,1734113437180,-1000.0,0.00027671,7]
[345244008,1734113437189,-500.0,0.00027671,7]
[345244009,1734113437198,-176.57,0.00027671,7]
[345244010,1734113437207,-150.27,0.00027671,7]
[345244011,1734113437216,-196.0,0.00027671,7]
[345244012,1734113437227,-500.0,0.00027671,7]
[345244013,1734113437236,-603.08,0.00027671,7]
[345244014,1734113437246,-194.55,0.00027671,7]
[345244015,1734113437255,-420.01,0.00027671,7]
[345244016,1734113437264,-500.0,0.00027671,7]
[345244017,1734113437274,-555.91,0.00027671,7]
[345244018,1734113437283,-336.92,0.00027671,7]
[345244019,1734113437293,-500.0,0.00027671,7]
[345244020,1734113437302,-500.0,0.00027671,7]
[345244021,1734113437311,-260.34,0.00027671,7]
[345244022,1734113437320,-590.3,0.00027671,7]
[345244023,1734113437330,-156.31,0.00027671,7]
[345244024,1734113437340,-500.0,0.00027671,7]
[345244025,1734113437349,-500.0,0.00027671,7]
[345244026,1734113437358,-500.0,0.00027821,5]
[345244027,1734113437367,-500.0,0.00027943,7]
[345244028,1734113437376,-500.0,0.00027943,7]
[345244029,1734113437385,-500.0,0.00027943,7]
[345244030,1734113437394,-500.0,0.00027943,7]
[345244031,1734113437413,-500.0,0.00027943,7]
[345244032,1734113437423,-613.91522561,0.00027943,7]
[345244033,1734113437434,-500.0,0.00027943,7]
[345244034,1734113437444,-500.0,0.00027943,7]
[345244035,1734113437454,-624.77,0.00027943,7]
[345244036,1734113437464,-500.0,0.00027943,7]
[345244037,1734113437475,-500.0,0.00027943,7]
[345244038,1734113437485,-556.63,0.00027943,7]
[345244039,1734113437496,-500.0,0.00027943,7]
[345244040,1734113437506,-500.0,0.00027943,7]
[345244041,1734113437515,-500.0,0.00027943,7]
[345244042,1734113437526,-500.0,0.00027943,7]
[345244043,1734113437536,-473.62284424,0.00027943,7]
[345244044,1734113437547,-500.0,0.00027943,7]
[345244045,1734113437557,-500.0,0.00027943,7]
[345244046,1734113437567,-500.0,0.00027943,7]
[345244047,1734113437577,-617.03236678,0.00027943,7]
[345244048,1734113437586,-544.11076406,0.00027943,7]
[345244049,1734113437596,-500.0,0.00027943,7]
[345244050,1734113437605,-500.0,0.00027943,7]
[345244051,1734113437615,-500.0,0.00027943,7]
[345244052,1734113437625,-500.0,0.00027943,7]
[345244053,1734113437635,-500.0,0.00027943,7]
[345244054,1734113437645,-500.0,0.00027943,7]
[345244055,1734113437654,-500.0,0.00027943,7]
[345244056,1734113437664,-500.0,0.00027943,7]
[345244057,1734113437674,-500.0,0.00027943,7]
[345244058,1734113437683,-500.0,0.00027943,7]
[345244059,1734113437693,-500.0,0.00027943,7]
[345244060,1734113437703,-500.0,0.00027945,7]
[345244061,1734113437712,-500.0,0.00027945,7]
[345244062,1734113437724,-218.28,0.00027945,7]
[345244063,1734113437734,-500.0,0.00027945,7]
[345244064,1734113437744,-323.64502847,0.00027945,7]
[345244065,1734113437753,-500.0,0.00027945,7]
[345244066,1734113437763,-500.0,0.00027945,7]
[345244067,1734113437772,-500.0,0.00027945,7]
[345244068,1734113437782,-151.03327568,0.00027945,7]
[345244069,1734113437792,-620.5,0.00027945,7]
[345244070,1734113437802,-500.0,0.00027945,7]
[345244071,1734113437812,-500.0,0.00027945,7]
[345244072,1734113437826,-471.91,0.00027945,7]
[345244074,1734113437836,-1507.09,0.00027945,5]
[345244076,1734113437846,-500.0,0.00027945,7]
[345244077,1734113437855,-1000.0,0.00027945,7]
[345244078,1734113437866,-500.0,0.00027945,7]
[345244079,1734113437876,-500.0,0.00027945,7]
[345244080,1734113437886,-500.0,0.00027945,7]
[345244081,1734113437896,-500.0,0.00027945,7]
[345244082,1734113437905,-500.0,0.00027945,7]
[345244084,1734113437915,-590.3,0.00027945,7]
[345244086,1734113437924,-500.0,0.00027945,7]
[345244088,1734113437933,-625.64,0.00027945,7]
[345244090,1734113437943,-579.63880349,0.00028046,2]
[345244092,1734113437953,-278.47,0.00028217,7]
[345244094,1734113437962,-163.82016365,0.00028217,7]
[345244096,1734113437974,-500.0,0.00028217,7]
[345244098,1734113437984,-500.0,0.00028217,7]
[345244100,1734113437994,-635.71699753,0.00028217,7]
[345244102,1734113438003,-500.0,0.00028217,7]
[345244104,1734113438013,-517.30225491,0.00028217,7]
[345244106,1734113438023,-188.95,0.00028219,7]
[345244108,1734113438032,-500.0,0.00028219,7]
[345244110,1734113438042,-500.0,0.00028219,7]
[345244112,1734113438052,-500.0,0.00028219,7]
[345244114,1734113438062,-500.0,0.00028219,7]
[345244116,1734113438072,-620.5,0.00028219,7]
[345244118,1734113438082,-500.0,0.00028219,7]
[345244120,1734113438091,-500.0,0.00028219,7]
[345244122,1734113438101,-1507.09,0.00028219,5]
[345244124,1734113438110,-490.73171991,0.00028219,7]
[345244126,1734113438119,-1000.0,0.00028219,7]
[345244128,1734113438129,-500.0,0.00028219,7]
[345244130,1734113438138,-500.0,0.00028219,7]
[345244132,1734113438148,-500.0,0.00028219,7]
[345244134,1734113438157,-500.0,0.00028219,7]
[345244136,1734113438167,-500.0,0.00028219,7]
[345244138,1734113438176,-590.3,0.00028219,7]
[345244140,1734113438185,-500.0,0.00028219,7]
[345244142,1734113438195,-823.0,0.00028229,2]
[345244144,1734113438204,-579.63880349,0.00028473,2]
[345244146,1734113438213,-500.0,0.00028491,7]
[345244148,1734113438224,-500.0,0.00028491,7]
[345244150,1734113438233,-500.0,0.00028491,7]
[345244152,1734113438242,-500.0,0.00028493,7]
[345244154,1734113438251,-500.0,0.00028493,7]
[345244156,1734113438261,-500.0,0.00028493,7]
[345244158,1734113438271,-620.5,0.00028493,7]
[345244160,1734113438280,-500.0,0.00028493,7]
[345244162,1734113438290,-500.0,0.00028493,7]
[345244164,1734113438299,-1507.09,0.00028493,5]
[345244166,1734113438309,-1000.0,0.00028493,7]
[345244168,1734113438319,-500.0,0.00028493,7]
[345244170,1734113438328,-624.61299102,0.00028493,7]
[345244172,1734113438338,-500.0,0.00028493,7]
[345244174,1734113438347,-500.0,0.00028493,7]
[345244176,1734113438357,-152.96330799,0.00028493,7]
[345244178,1734113438367,-590.3,0.00028493,7]
[345244180,1734113438376,-500.0,0.00028493,7]
[345244182,1734113438386,-34778.73792345,0.000285,2]
[345244184,1734113438395,-533.0,0.00028637,2]
[345244186,1734113438404,-153.0,0.00028742,2]
[345244188,1734113438414,-153.0,0.00028742,2]
[345244190,1734113438424,-153.0,0.00028742,2]
[345244192,1734113438433,-153.0,0.00028742,2]
[345244194,1734113438443,-153.0,0.00028742,2]
[345244196,1734113438452,-153.0,0.00028742,2]
[345244198,1734113438462,-153.0,0.00028742,2]
[345244200,1734113438473,-153.0,0.00028742,2]
[345244203,1734113438483,-256.75,0.00028765,7]
[345244204,1734113438492,-500.0,0.00028765,7]
[345244207,1734113438501,-500.0,0.00028765,7]
[345244208,1734113438511,-317.05,0.00028767,7]
[345244210,1734113438522,-500.0,0.00028767,7]
[345244212,1734113438531,-500.0,0.00028767,7]
[345244215,1734113438541,-620.5,0.00028767,7]
[345244216,1734113438550,-500.0,0.00028767,7]
[345244219,1734113438560,-500.0,0.00028767,7]
[345244220,1734113438569,-1507.09,0.00028767,5]
[345244222,1734113438578,-1000.0,0.00028767,7]
[345244224,1734113438588,-500.0,0.00028767,7]
[345244226,1734113438597,-500.0,0.00028767,7]
[345244228,1734113438607,-500.0,0.00028767,7]
[345244230,1734113438616,-590.3,0.00028767,7]
[345244232,1734113438625,-156.14607894,0.00028767,7]
[345244234,1734113438634,-1602.5650726,0.00028785,2]
[345244236,1734113438643,-151.0,0.000288,19]
[345244239,1734113438655,-4734.66208957,0.000288,30]
[345244240,1734113438664,-151.0,0.000289,14]
[345244243,1734113438674,-151.0,0.000289,12]
[345244245,1734113438684,-579.63880349,0.000289,2]
[345244247,1734113438692,-500.0,0.00028973,5]
[345244248,1734113438702,-253.0,0.00028997,2]
[345244251,1734113438711,-801.30366289,0.00028999,2]
[345244253,1734113438720,-180543.32468309,0.00029,2]
[345244271,1734113438897,-501.31637355,0.00027273,2]
[345244274,1734113438907,-500.0,0.00027397,7]
[345244276,1734113438916,-500.0,0.00027671,7]
[345244278,1734113438926,-723.33,0.0002776,15]
[345244280,1734113438935,-500.0,0.00027945,7]
[345244282,1734113438944,-500.0,0.00028219,7]
[345244283,1734113438953,-500.0,0.00028493,7]
[345244285,1734113438963,-500.0,0.00028767,7]
[345244287,1734113438973,-944.99026195,0.00029,2]
[345244288,1734113439071,-3010.7417984,0.00029,2]
[345244289,1734113439082,-16242.45284447,0.00029,2]